bitfinex-derivatives/quotes_BNBF0:USTF0_20250112
["timestamp","ask_amount","ask_price","bid_price","bid_amount"]
[1736649896442,1.07078143,696.77,695.69,0.28748436]
[1736649897543,1.07078143,696.74,695.69,0.28748436]
[1736649899245,1.07078143,696.72,695.69,0.28748436]
[1736649901145,1.07078143,696.66,695.69,0.28748436]
[1736649902151,1.07078143,696.65,695.69,0.28748436]
[1736649903153,1.07078143,696.64,695.69,0.28748436]
[1736649906154,1.07078143,696.63,695.69,0.28748436]
[1736649911550,1.07078143,696.62,695.69,0.28748436]
[1736649912354,1.07078143,696.63,695.69,0.28748436]
[1736649913658,1.07078143,696.65,695.69,0.28748436]
[1736649915554,1.07078143,696.66,695.69,0.28748436]
[1736649918264,1.07078143,696.65,695.69,0.28748436]
[1736649920265,0.28699757,696.87,695.69,0.28748436]
[1736649920266,1.07078143,696.66,695.69,0.28748436]
[1736649921363,0.28699757,696.87,695.69,0.28748436]
[1736649921364,1.07078143,696.64,695.69,0.28748436]
[1736649924470,1.07078143,696.63,695.69,0.28748436]
[1736649925470,1.07078143,696.64,695.69,0.28748436]
[1736649926171,1.07078143,696.63,695.69,0.28748436]
[1736649928165,1.07078143,696.64,695.69,0.28748436]
[1736649930366,1.07078143,696.68,695.69,0.28748436]
[1736649931174,1.07078143,696.71,695.69,0.28748436]
[1736649933169,0.28699757,696.87,695.69,0.28748436]
[1736649933170,1.07078143,696.73,695.69,0.28748436]
[1736649934275,1.07078143,696.85,695.69,0.28748436]
[1736649935570,0.28699757,696.87,695.69,0.28748436]
[1736649944377,1.07078143,696.83,695.69,0.28748436]
[1736649948382,1.07078143,696.8,695.69,0.28748436]
[1736649949183,1.07078143,696.78,695.69,0.28748436]
[1736649950287,1.07078143,696.77,695.69,0.28748436]
[1736649951184,1.07078143,696.79,695.69,0.28748436]
[1736649952090,0.28699757,696.87,695.69,0.28748436]
[1736649952091,1.07078143,696.78,695.69,0.28748436]
[1736649952990,0.28699757,696.87,695.69,0.28748436]
[1736649952991,1.07078143,696.73,695.69,0.28748436]
[1736649956091,1.07078143,696.75,695.69,0.28748436]
[1736649957194,1.07078143,696.76,695.69,0.28748436]
[1736649958597,1.07078143,696.75,695.69,0.28748436]
[1736649962695,1.07078143,696.73,695.69,0.28748436]
[1736649963496,1.07078143,696.74,695.69,0.28748436]
[1736649964400,1.07078143,696.75,695.69,0.28748436]
[1736649965396,1.07078143,696.79,695.69,0.28748436]
[1736649967399,1.07078143,696.83,695.69,0.28748436]
[1736649968499,1.07078143,696.8,695.69,0.28748436]
[1736649969495,1.07078143,696.79,695.69,0.28748436]
[1736649970295,1.07078143,696.8,695.69,0.28748436]
[1736649971902,1.07078143,696.79,695.69,0.28748436]
[1736649973702,1.07078143,696.89,695.69,0.28748436]
[1736649974098,0.28699345,696.88,695.69,0.28748436]
[1736650016343,0.2639286,696.87,695.69,0.28748436]
[1736650016541,0.28700169,696.86,695.69,0.28748436]
[1736650016840,0.2639286,696.85,695.69,0.28748436]
[1736650017137,1.07078143,696.8,695.69,0.28748436]
[1736650018242,1.07078143,696.81,695.69,0.28748436]
[1736650019042,1.07078143,696.8,695.69,0.28748436]
[1736650020138,1.07078143,696.82,695.69,0.28748436]
[1736650021538,1.07078143,696.81,695.69,0.28748436]
[1736650022344,1.07078143,696.8,695.69,0.28748436]
[1736650023844,0.26393643,696.79,695.69,0.28748436]
[1736650024343,1.07078143,696.78,695.69,0.28748436]
[1736650024546,0.26393643,696.77,695.69,0.28748436]
[1736650025141,1.07078143,696.74,695.69,0.28748436]
[1736650028044,1.07078143,696.73,695.69,0.28748436]
[1736650028944,1.07078143,696.72,695.69,0.28748436]
[1736650032750,1.07078143,696.71,695.69,0.28748436]
[1736650033952,1.07078143,696.72,695.69,0.28748436]
[1736650037255,1.07078143,696.71,695.69,0.28748436]
[1736650037953,1.07078143,696.7,695.69,0.28748436]
[1736650039947,1.07078143,696.71,695.69,0.28748436]
[1736650040956,0.28700169,696.86,695.69,0.28748436]
[1736650040957,1.07078143,696.68,695.69,0.28748436]
[1736650042955,1.07078143,696.67,695.69,0.28748436]
[1736650043947,1.07078143,696.66,695.69,0.28748436]
[1736650047150,1.07078143,696.63,695.69,0.28748436]
[1736650049253,1.07078143,696.64,695.69,0.28748436]
[1736650051660,0.88516447,696.85,695.69,0.28748436]
[1736650051661,1.07078143,696.61,695.69,0.28748436]
[1736650052560,1.0727619,696.79,695.69,0.28748436]
[1736650052561,1.07078143,696.6,695.69,0.28748436]
[1736650053557,1.07078143,696.61,695.69,0.28748436]
[1736650055364,0.28700169,696.86,695.69,0.28748436]
[1736650055365,1.07078143,696.65,695.69,0.28748436]
[1736650063272,1.07078143,696.6,695.69,0.28748436]
[1736650065071,1.07078143,696.57,695.69,0.28748436]
[1736650069675,1.07078143,696.59,695.69,0.28748436]
[1736650075083,1.07078143,696.58,695.69,0.28748436]
[1736650077484,1.07078143,696.63,695.69,0.28748436]
[1736650082283,1.07078143,696.65,695.69,0.28748436]
[1736650085390,1.07078143,696.62,695.69,0.28748436]
[1736650085987,1.07078143,696.62,695.23,3.04399406]
[1736650086587,1.07078143,696.62,695.24,0.28767044]
[1736650088289,1.07078143,696.6,695.24,0.28767044]
[1736650089090,1.07078143,696.61,695.24,0.28767044]
[1736650092288,1.07078143,696.72,695.24,0.28767044]
[1736650092489,0.28706348,696.71,695.24,0.28767044]
[1736650094197,0.26397462,696.7,695.24,0.28767044]
[1736650094498,0.26397462,696.69,695.24,0.28767044]
[1736650095099,1.07078143,696.65,695.37,1.28967854]
[1736650095999,1.07078143,696.64,695.37,1.28967854]
[1736650099302,1.07078143,696.63,695.37,1.28967854]
[1736650099796,1.07078143,696.57,695.32,2.75076177]
[1736650100295,1.07078143,696.57,695.32,5.79475583]
[1736650100499,1.07078143,696.57,695.33,2.75076177]
[1736650107301,1.07078143,696.57,695.33,4.04044031]
[1736650107705,1.07078143,696.57,695.34,3.04399406]
[1736650107897,1.07078143,696.57,695.34,5.79475583]
[1736650108206,1.07078143,696.58,695.35,2.75076177]
[1736650108903,1.07078143,696.57,695.35,2.75076177]
[1736650109298,1.07078143,696.57,695.35,5.79475583]
[1736650109502,1.07078143,696.57,695.36,2.75076177]
[1736650113207,1.07078143,696.56,695.36,4.04044031]
[1736650113406,1.07078143,696.56,695.37,3.04399406]
[1736650113609,1.07078143,696.56,695.37,5.79475583]
[1736650113803,1.07078143,696.56,695.38,2.75076177]
[1736650115107,1.07078143,696.61,695.42,1.28967854]
[1736650117707,0.2870676,696.7,695.42,1.28967854]
[1736650117708,1.07078143,696.6,695.42,1.28967854]
[1736650118511,1.07078143,696.6,695.42,4.04044031]
[1736650118907,1.07078143,696.59,695.43,1.28967854]
[1736650119613,1.07078143,696.55,695.42,4.04044031]
[1736650120012,1.07078143,696.55,695.43,3.04399406]
[1736650120212,1.07078143,696.55,695.43,5.79475583]
[1736650120412,1.07078143,696.55,695.44,2.75076177]
[1736650120614,1.07078143,696.55,695.43,3.04399406]
[1736650121108,1.07078143,696.55,695.42,1.28967854]
[1736650122013,1.07078143,696.55,695.34,1.81784399]
[1736650122414,1.07078143,696.55,695.33,3.04399406]
[1736650122915,1.07078143,696.49,695.33,3.04399406]
[1736650123118,1.07078143,696.49,695.24,0.28767044]
[1736650123814,1.07078143,696.55,695.24,0.28767044]
[1736650124611,1.07078143,696.56,695.24,0.28767044]
[1736650125410,0.2870676,696.7,695.24,0.28767044]
[1736650125411,1.07078143,696.57,695.24,0.28767044]
[1736650126411,0.2870676,696.7,695.24,0.28767044]
[1736650126412,1.07078143,696.58,695.24,0.28767044]
[1736650129019,1.07078143,696.59,695.24,0.28767044]
[1736650130823,1.07078143,696.67,695.24,0.28767044]
[1736650131015,0.55109121,696.66,695.24,0.28767044]
[1736650131218,0.55109533,696.65,695.24,0.28767044]
[1736650131420,0.55109945,696.64,695.24,0.28767044]
[1736650131616,0.26400713,696.63,695.24,0.28767044]
[1736650131821,1.07078143,696.62,695.24,0.28767044]
[1736650132020,0.26401808,696.61,695.24,0.28767044]
[1736650132724,1.33479951,696.61,695.24,0.28767044]
[1736650132924,1.07078143,696.61,695.24,0.28767044]
[1736650133223,0.26402072,696.6,695.24,0.28767044]
[1736650133827,1.07078143,696.56,695.24,0.28767044]
[1736650134025,0.26402072,696.55,695.24,0.28767044]
[1736650135226,0.26402072,696.54,695.24,0.28767044]
[1736650135428,0.26402072,696.53,695.24,0.28767044]
[1736650135624,1.07078143,696.57,695.24,0.28767044]
[1736650135929,0.264019,696.56,695.24,0.28767044]
[1736650136423,1.07078143,696.57,695.24,0.28767044]
[1736650136729,0.26401559,696.56,695.24,0.28767044]
[1736650136929,0.26401559,696.55,695.24,0.28767044]
[1736650137122,0.26401559,696.54,695.24,0.28767044]
[1736650137320,0.26401559,696.53,695.24,0.28767044]
[1736650137524,1.07078143,696.59,695.24,0.28767044]
[1736650137727,0.26401935,696.58,695.24,0.28767044]
[1736650137923,0.28712117,696.57,695.24,0.28767044]
[1736650138524,1.07078143,696.51,695.24,0.28767044]
[1736650139424,1.07078143,696.56,695.24,0.28767044]
[1736650139729,0.28712942,696.55,695.24,0.28767044]
[1736650145738,0.26405569,696.54,695.24,0.28767044]
[1736650146132,0.26405677,696.53,695.24,0.28767044]
[1736650146332,0.26405677,696.52,695.24,0.28767044]
[1736650146531,0.55119856,696.52,695.24,0.28767044]
[1736650146733,0.26405677,696.51,695.24,0.28767044]
[1736650147138,1.3348382,696.51,695.24,0.28767044]
[1736650147339,0.26405677,696.5,695.24,0.28767044]
[1736650148739,1.07078143,696.51,695.24,0.28767044]
[1736650149040,1.33483889,696.5,695.24,0.28767044]
[1736650149234,0.26405746,696.49,695.24,0.28767044]
[1736650151544,0.26405449,696.48,695.24,0.28767044]
[1736650151843,0.26405449,696.47,695.24,0.28767044]
[1736650152043,0.26405449,696.46,695.24,0.28767044]
[1736650152243,0.2640546,696.45,695.24,0.28767044]
[1736650152443,0.2640546,696.44,695.24,0.28767044]
[1736650152646,1.07078143,696.44,695.24,0.28767044]
[1736650153541,1.07078143,696.46,695.24,0.28767044]
[1736650154545,0.28714179,696.52,695.24,0.28767044]
[1736650154546,1.07078143,696.45,695.24,0.28767044]
[1736650155641,1.07078143,696.44,695.24,0.28767044]
[1736650156448,1.07078143,696.43,695.24,0.28767044]
[1736650157351,1.07078143,696.4,695.24,0.28767044]
[1736650160152,1.07078143,696.39,695.24,0.28767044]
[1736650163152,1.07078143,696.37,695.24,0.28767044]
[1736650164854,1.07078143,696.36,695.24,0.28767044]
[1736650166655,1.07078143,696.35,695.24,0.28767044]
[1736650167755,1.07078143,696.42,695.24,0.28767044]
[1736650169659,0.28714179,696.52,695.24,0.28767044]
[1736650169660,1.07078143,696.41,695.24,0.28767044]
[1736650170160,1.07078143,696.4,695.24,0.28767044]
[1736650171357,1.07078143,696.39,695.24,0.28767044]
[1736650172164,1.07078143,696.38,695.24,0.28767044]
[1736650173460,1.07078143,696.35,695.24,0.28767044]
[1736650176462,1.07078143,696.26,695.24,0.28767044]
[1736650178761,0.88555849,696.51,695.24,0.28767044]
[1736650178762,1.07078143,696.33,695.24,0.28767044]
[1736650179567,1.07078143,696.34,695.24,0.28767044]
[1736650181167,1.07078143,696.35,695.24,0.28767044]
[1736650182170,1.07078143,696.45,695.25,1.28967854]
[1736650182972,1.07078143,696.46,695.24,1.57734898]
[1736650185273,1.07078143,696.46,695.24,0.28767044]
[1736650185871,1.07078143,696.47,695.24,0.28767044]
[1736650186572,1.07078143,696.47,695.24,3.3316645]
[1736650186779,1.07078143,696.47,695.24,6.07967149]
[1736650186978,1.07078143,696.46,695.25,2.74800699]
[1736650188279,0.26405026,696.45,695.24,3.03567743]
[1736650189281,1.07078143,696.42,695.24,3.03567743]
[1736650189676,1.07078143,696.42,695.24,0.28767044]
[1736650190381,1.07078143,696.41,695.24,0.28767044]
[1736650191383,1.07078143,696.3,695.24,0.28767044]
[1736650198888,1.07078143,696.33,695.24,0.28767044]
[1736650204990,1.07078143,696.38,695.24,0.28767044]
[1736650206291,0.28714179,696.52,695.24,0.28767044]
[1736650206292,1.07078143,696.39,695.24,0.28767044]
[1736650207493,1.07078143,696.4,695.24,0.28767044]
[1736650208687,0.28714179,696.52,695.24,0.28767044]
[1736650208688,1.07078143,696.36,695.24,0.28767044]
[1736650209696,1.07078143,696.37,695.24,0.28767044]
[1736650210692,1.07078143,696.35,695.24,0.28767044]
[1736650211689,1.07078143,696.37,695.24,0.28767044]
[1736650213398,1.07078143,696.31,695.24,0.28767044]
[1736650215298,1.07078143,696.32,695.24,0.28767044]
[1736650216195,1.07078143,696.33,695.24,0.28767044]
[1736650218899,0.28722426,696.32,694.7,3.04399406]
[1736650219100,0.28722426,696.32,694.71,0.28788991]
[1736650234511,0.26411862,696.31,694.71,0.28788991]
[1736650234708,0.28722426,696.32,694.71,0.28788991]
[1736650235108,0.28722426,696.32,694.96,1.28967854]
[1736650235811,0.26413931,696.31,694.96,1.28967854]
[1736650236011,0.28723251,696.3,694.96,1.28967854]
[1736650236412,0.28723251,696.3,694.89,1.81657034]
[1736650236612,0.28723251,696.3,694.88,3.04402795]
[1736650237910,0.28723251,696.3,694.8,1.28967854]
[1736650238307,0.28723251,696.3,694.71,0.28788991]
[1736650249120,1.07078143,696.29,694.71,0.28788991]
[1736650249318,0.28724076,696.28,694.71,0.28788991]
[1736650249927,1.07078143,696.27,694.71,0.28788991]
[1736650250117,1.35802632,696.27,694.71,0.28788991]
[1736650250927,1.07078143,696.25,694.71,0.28788991]
[1736650251823,1.07078143,696.25,694.71,1.57756845]
[1736650252722,1.07078143,696.24,694.71,0.28788991]
[1736650253919,1.07078143,696.24,694.71,1.57756845]
[1736650255024,1.07078143,696.23,694.71,1.57756845]
[1736650256320,1.07078143,696.24,694.71,1.57756845]
[1736650257123,0.28724489,696.27,694.71,1.57756845]
[1736650257124,1.07078143,696.26,694.71,0.28788991]
[1736650257426,0.26413855,696.25,694.71,0.28788991]
[1736650257826,1.07078143,696.26,694.71,0.28788991]
[1736650258026,0.28724489,696.27,694.71,0.28788991]
[1736650258027,1.07078143,696.2,694.82,1.28967854]
[1736650258928,0.28724489,696.27,694.94,1.28967854]
[1736650260024,0.28724489,696.27,694.92,1.28967854]
[1736650261227,0.28724489,696.27,694.9,2.74742396]
[1736650261228,0.28724489,696.27,694.95,1.28967854]
[1736650262527,0.28724489,696.27,694.97,1.28967854]
[1736650263529,0.28724489,696.27,694.99,1.28967854]
[1736650264528,0.28724489,696.27,694.97,1.28967854]
[1736650265725,0.28724489,696.27,694.98,1.28967854]
[1736650266325,1.07078143,696.25,694.96,2.74742396]
[1736650267130,1.07078143,696.25,694.88,2.74742396]
[1736650267533,1.07078143,696.22,694.88,2.74742396]
[1736650268934,1.07078143,696.22,694.89,0.28781533]
[1736650269434,1.07078143,696.24,694.89,3.03523929]
[1736650270535,1.07078143,696.26,694.89,4.32491783]
[1736650270735,1.07078143,696.26,694.89,7.36692801]
[1736650270932,1.07078143,696.26,694.9,2.74742396]
[1736650271137,1.07078143,696.25,694.91,0.28780705]
[1736650272235,1.07078143,696.26,694.91,0.28780705]
[1736650273338,0.28724489,696.27,694.96,1.28967854]
[1736650274137,0.28724489,696.27,694.97,1.28967854]
[1736650276137,0.28724489,696.27,694.96,1.28967854]
[1736650277038,0.28724489,696.27,694.95,1.28967854]
[1736650277631,0.28724489,696.27,694.95,4.33168872]
[1736650277833,0.28724489,696.27,694.97,1.28967854]
[1736650278538,0.28724489,696.27,694.96,2.74742396]
[1736650279338,1.35802632,696.27,694.96,2.74742396]
[1736650279540,0.28724901,696.26,694.96,2.74742396]
[1736650280240,1.07078143,696.2,694.96,2.74742396]
[1736650280942,1.07078143,696.2,694.91,0.28780705]
[1736650281238,1.07078143,696.15,694.91,0.28780705]
[1736650282238,1.07078143,696.12,694.91,0.28780705]
[1736650283139,1.07078143,696.14,694.91,0.28780705]
[1736650284139,0.28724901,696.26,694.91,0.28780705]
[1736650284140,1.07078143,696.12,694.91,0.28780705]
[1736650285140,1.07078143,696.13,694.91,0.28780705]
[1736650286141,1.07078143,696.17,694.91,0.28780705]
[1736650287142,1.07078143,696.16,694.91,0.28780705]
[1736650288042,1.07078143,696.17,694.91,0.28780705]
[1736650289343,1.07078143,696.25,694.91,0.28780705]
[1736650290043,0.28724901,696.26,694.91,0.28780705]
[1736650290044,1.07078143,696.24,694.91,0.28780705]
[1736650290640,0.28726139,696.23,694.91,0.28780705]
[1736650291243,1.07078143,696.22,694.91,0.28780705]
[1736650291545,0.28726964,696.21,694.91,0.28780705]
[1736650291945,1.07078143,696.2,694.91,0.28780705]
[1736650292138,0.28727789,696.19,694.91,0.28780705]
[1736650292844,1.35805932,696.19,694.91,0.28780705]
[1736650293946,0.28727789,696.19,694.91,0.28780705]
[1736650298350,0.26417893,696.18,694.91,0.28780705]
[1736650298553,0.28728615,696.17,694.91,0.28780705]
[1736650305557,1.35806758,696.17,694.91,0.28780705]
[1736650307458,0.28728615,696.17,694.91,0.28780705]
[1736650310263,1.33500178,696.16,694.33,2.74742396]
[1736650310458,0.55151475,696.15,694.35,0.28803917]
[1736650310661,0.28729853,696.14,694.35,0.28803917]
[1736650312364,0.26422634,696.13,694.35,0.28803917]
[1736650312562,0.28730678,696.12,694.35,0.28803917]
[1736650312758,0.26422634,696.11,694.35,0.28803917]
[1736650312962,0.28731504,696.1,694.35,0.28803917]
[1736650313164,0.26422634,696.09,694.35,0.28803917]
[1736650313468,0.28732329,696.08,694.35,0.28803917]
[1736650313765,0.2642283,696.07,694.35,0.28803917]
[1736650313962,0.28733155,696.06,694.35,0.28803917]
[1736650314166,0.28733155,696.06,694.36,1.28967854]
[1736650314366,0.28733155,696.06,694.37,0.28803087]
[1736650315263,0.28733155,696.06,694.38,1.28967854]
[1736650315568,0.28733155,696.06,694.39,0.28802258]
[1736650317070,0.26423253,696.05,694.39,0.28802258]
[1736650317264,0.2873398,696.04,694.39,0.28802258]
[1736650318073,0.2873398,696.04,694.4,1.28967854]
[1736650318370,0.2873398,696.04,694.41,0.28801428]
[1736650320070,0.2873398,696.04,694.43,1.28967854]
[1736650320267,0.2873398,696.04,694.44,0.28800184]
[1736650321775,0.2873398,696.04,694.45,1.28967854]
[1736650321974,0.2873398,696.04,694.46,0.28799354]
[1736650323070,0.2873398,696.04,694.46,1.57767208]
[1736650325477,0.26420624,696.03,694.46,1.57767208]
[1736650325677,0.2873398,696.04,694.46,1.57767208]
[1736650325869,0.2873398,696.04,694.46,4.61968226]
[1736650326072,0.2873398,696.04,694.66,1.28967854]
[1736650326376,0.2873398,696.04,694.67,0.28790648]
[1736650327776,0.2873398,696.04,694.69,1.28967854]
[1736650329178,0.2873398,696.04,694.71,1.28967854]
[1736650329773,0.2873398,696.04,694.72,1.28967854]
[1736650330777,0.2873398,696.04,694.71,1.28967854]
[1736650332978,1.07078143,696.02,694.68,3.04201018]
[1736650333178,1.07078143,696.02,694.68,5.78943414]
[1736650333380,1.07078143,696.02,694.69,2.74742396]
[1736650333981,1.07078143,696.02,694.7,0.28789405]
[1736650334882,0.2873398,696.04,694.73,1.28967854]
[1736650335479,0.2873398,696.04,694.74,0.28787747]
[1736650340682,0.2873398,696.04,694.74,3.32988765]
[1736650340987,0.2873398,696.04,694.74,5.14529083]
[1736650341189,0.2873398,696.04,694.74,3.32988765]
[1736650342187,0.2873398,696.04,694.74,2.10361865]
[1736650342383,0.2873398,696.04,694.74,0.28787747]
[1736650352202,0.2873398,696.04,694.8,1.28967854]
[1736650352399,0.2873398,696.04,694.81,0.28784847]
[1736650353302,0.2873398,696.04,694.81,1.57752701]
[1736650354604,0.2873398,696.04,694.81,0.28784847]
[1736650366814,0.2873398,696.04,694.81,1.57752701]
[1736650367812,0.2873398,696.04,694.82,1.28967854]
[1736650368011,0.2873398,696.04,694.83,0.28784019]
[1736650368918,0.2873398,696.04,694.85,1.28967854]
[1736650369112,0.2873398,696.04,694.86,0.28782776]
[1736650370013,0.2873398,696.04,694.96,1.28967854]
[1736650370813,0.2873398,696.04,694.95,1.28967854]
[1736650373716,0.2873398,696.04,694.96,1.28967854]
[1736650375219,0.2873398,696.04,694.96,4.03758407]
[1736650375615,0.2873398,696.04,694.98,1.28967854]
[1736650376322,0.2873398,696.04,694.99,1.28967854]
[1736650377223,0.2873398,696.04,695.0,1.28967854]
[1736650378021,0.2873398,696.04,694.93,2.74618177]
[1736650379024,0.2873398,696.04,694.93,4.03586031]
[1736650379224,0.2873398,696.04,694.94,3.04201018]
[1736650379422,0.2873398,696.04,694.94,5.78819195]
[1736650379624,0.2873398,696.04,694.95,2.74618177]
[1736650381625,0.2873398,696.04,694.95,4.03586031]
[1736650382125,0.2873398,696.04,694.96,3.04201018]
[1736650382322,0.2873398,696.04,694.96,5.78819195]
[1736650382523,0.2873398,696.04,694.97,2.74618177]
[1736650385027,0.2873398,696.04,694.97,5.78819195]
[1736650385228,0.2873398,696.04,694.98,2.74618177]
[1736650385528,0.2873398,696.04,695.02,1.28967854]
[1736650386229,0.2873398,696.04,695.05,1.28967854]
[1736650387331,0.2873398,696.04,694.99,3.04201018]
[1736650387831,0.2873398,696.04,694.88,2.74628013]
[1736650388029,0.2873398,696.04,694.89,0.28781533]
[1736650389525,1.07078143,696.35,694.89,0.28781533]
[1736650390431,1.50064144,696.56,694.89,0.28781533]
[1736650390631,0.28712942,696.55,694.89,0.28781533]
[1736650393734,1.07078143,696.54,694.89,0.28781533]
[1736650394632,0.28712942,696.55,694.89,0.28781533]
[1736650422151,0.28712942,696.55,694.89,1.57749387]
[1736650423151,0.28712942,696.55,694.89,0.28781533]
[1736650424152,0.28712942,696.55,694.9,1.28967854]
[1736650424353,0.28712942,696.55,694.92,0.28780291]
[1736650424854,0.28712942,696.55,694.92,1.57748145]
[1736650425853,0.28712942,696.55,695.06,1.28967854]
[1736650426052,0.28712942,696.55,695.08,0.28773666]
[1736650426656,0.28712942,696.55,695.08,1.5774152]
[1736650428356,0.28712942,696.55,695.1,1.28967854]
[1736650428657,0.28712942,696.55,695.12,0.2877201]
[1736650428859,0.28712942,696.55,695.13,1.28967854]
[1736650429553,0.28712942,696.55,695.15,0.28770768]
[1736650432660,0.28712942,696.55,695.17,1.28967854]
[1736650432860,0.28712942,696.55,695.19,0.28769113]
[1736650435659,0.28712942,696.55,695.2,1.28967854]
[1736650435856,0.28712942,696.55,695.22,0.28767872]
[1736650437564,0.28712942,696.55,695.23,1.28967854]
[1736650437767,0.28712942,696.55,695.25,0.2876663]
[1736650438166,0.28712942,696.55,695.26,1.28967854]
[1736650438364,0.28712942,696.55,695.28,0.28765389]
[1736650439165,0.28712942,696.55,695.37,1.28967854]
[1736650439365,0.28712942,696.55,695.38,0.28761252]
[1736650440368,0.28712942,696.55,695.47,1.28967854]
[1736650440669,0.28712942,696.55,695.47,1.57725384]
[1736650441265,0.28712942,696.55,695.52,1.28967854]
[1736650442067,0.28712942,696.55,695.47,0.2875753]
[1736650442068,0.28712942,696.55,695.59,1.28967854]
[1736650442863,0.28712942,696.55,695.5,1.81521139]
[1736650442864,0.28712942,696.55,695.63,1.28967854]
[1736650445470,0.28712942,696.55,695.64,1.28967854]
[1736650446571,0.28712942,696.55,695.58,2.74108633]
[1736650447168,0.28712942,696.55,695.57,1.81521139]
[1736650447369,0.28712942,696.55,695.56,6.14690011]
[1736650447570,0.28712942,696.55,695.57,1.81521139]
[1736650448466,0.28712942,696.55,695.57,2.74200168]
[1736650448770,0.28712942,696.55,695.54,2.74200168]
[1736650449171,0.28712942,696.55,695.53,1.28967854]
[1736650452274,0.28712942,696.55,695.51,1.81521139]
[1736650452275,0.28712942,696.55,695.54,1.28967854]
[1736650452875,0.28712942,696.55,695.47,0.2875753]
[1736650452876,0.28712942,696.55,695.6,1.28967854]
[1736650455171,0.28712942,696.55,695.61,1.28967854]
[1736650458176,0.28712942,696.55,695.66,1.28967854]
[1736650460279,0.28712942,696.55,695.62,2.74463625]
[1736650462281,0.28712942,696.55,695.61,2.74463625]
[1736650463876,1.07078143,696.77,695.61,2.74463625]
[1736650464080,1.07078143,696.76,695.61,2.74463625]
[1736650465083,1.07078143,696.75,695.62,1.28967854]
[1736650465590,1.07078143,696.75,695.62,4.33168872]
[1736650465790,1.07078143,696.75,695.63,2.74463625]
[1736650465990,1.07078143,696.72,695.63,2.74463625]
[1736650467589,1.07078143,696.77,695.65,1.28967854]
[1736650468493,1.07078143,696.77,695.64,4.33168872]
[1736650468691,1.07078143,696.77,695.65,2.74463625]
[1736650469790,1.07078143,696.77,695.65,5.78664643]
[1736650469991,1.07078143,696.77,695.66,2.74463625]
[1736650470688,1.07078143,696.78,695.66,2.74463625]
[1736650471287,1.07078143,696.78,695.66,5.78664643]
[1736650471487,1.07078143,696.78,695.67,2.74463625]
[1736650473700,1.07078143,696.79,695.67,2.74463625]
[1736650474495,1.07078143,696.79,695.67,1.81521139]
[1736650474700,1.07078143,696.79,695.66,3.04201018]
[1736650474894,1.07078143,696.79,695.65,1.28967854]
[1736650475096,1.07078143,696.79,695.66,1.28967854]
[1736650475901,1.07078143,696.85,695.47,0.2875753]
[1736650476704,1.07078143,696.86,695.47,0.2875753]
[1736650478905,1.07078143,696.87,695.47,0.2875753]
[1736650479904,1.07078143,696.88,695.47,0.2875753]
[1736650480900,1.07078143,696.9,695.47,0.2875753]
[1736650482402,1.07078143,696.91,695.47,0.2875753]
[1736650484007,1.35776253,696.91,695.47,0.2875753]
[1736650484507,0.2869811,696.91,695.47,0.2875753]
[1736650485508,1.07078143,696.86,695.47,0.2875753]
[1736650487208,0.2869811,696.91,695.47,0.2875753]
[1736650487209,1.07078143,696.85,695.47,0.2875753]
[1736650488107,1.07078143,696.83,695.47,0.2875753]
[1736650489106,1.07078143,696.82,695.47,0.2875753]
[1736650490206,1.07078143,696.83,695.47,0.2875753]
[1736650491011,1.07078143,696.77,695.48,1.28967854]
[1736650491208,1.07078143,696.77,695.48,1.57724971]
[1736650492111,1.07078143,696.77,695.49,1.28967854]
[1736650493013,1.07078143,696.78,695.48,1.57724971]
[1736650493711,1.07078143,696.75,695.5,1.28967854]
[1736650494813,1.07078143,696.83,695.48,0.28757117]
[1736650497518,1.07078143,696.81,695.48,0.28757117]
[1736650501617,0.2869811,696.91,695.48,0.28757117]
[1736650512226,1.07078143,696.79,695.48,0.28757117]
[1736650514228,1.07078143,696.77,695.48,0.28757117]
[1736650515329,1.07078143,696.75,695.48,0.28757117]
[1736650515932,1.07078143,696.75,695.56,1.28967854]
[1736650516132,1.07078143,696.69,695.56,1.28967854]
[1736650516926,1.07078143,696.7,695.56,1.28967854]
[1736650519434,1.07078143,696.69,695.56,1.28967854]
[1736650520535,1.07078143,696.7,695.56,1.28967854]
[1736650521934,1.07078143,696.7,695.56,4.33656711]
[1736650522134,1.07078143,696.7,695.57,2.75151717]
[1736650523437,1.07078143,696.7,695.57,5.79840574]
[1736650523633,1.07078143,696.7,695.58,2.75151717]
[1736650524638,1.07078143,696.7,695.58,5.79840574]
[1736650524838,1.07078143,696.7,695.59,2.75151717]
[1736650525038,1.07078143,696.72,695.59,2.75151717]
[1736650525838,1.07078143,696.72,695.59,5.79840574]
[1736650526039,1.07078143,696.72,695.6,2.75151717]
[1736650527239,1.07078143,696.72,695.56,2.75151717]
[1736650527435,1.07078143,696.72,695.56,1.81836778]
[1736650527639,1.07078143,696.72,695.55,4.86525635]
[1736650528236,1.07078143,696.79,695.55,1.81836778]
[1736650528437,1.07078143,696.79,695.48,0.28757117]
[1736650529241,1.07078143,696.84,695.48,0.28757117]
[1736650531641,1.07078143,696.83,695.48,0.28757117]
[1736650532136,1.07078143,696.84,695.48,0.28757117]
[1736650533741,1.07078143,696.83,695.48,0.28757117]
[1736650534638,0.2869811,696.91,695.48,0.28757117]
[1736650534639,1.07078143,696.82,695.48,0.28757117]